{"text_format":"3","workbook":"xlsx","n_sheets":6,"sheets":["SEMESTAR","BODOVI","PRORAČUN","NETO MJESEČNI TROŠKOVI","TROŠKOVI SEMESTRA","KNJIGE"],"not_rendered":{"defined_names":21},"read":"whole","date_system":"1900"}

{"sheet":"SEMESTAR","index":0,"n_rows":29,"n_cols":9,"rows_kept":29,"merged":[[2,3,2,4]]}
[null,"MOJ RASPORED PREDAVANJA"]
[null,"ZIMSKI SEMESTAR"]
[null,null,"VRIJEME POČETKA","VREMENSKI INTERVAL",null,"GODINA"]
[null,null,"09:00:00",60,"(u minutama)"]
[null,"VRIJEME ","PON","UTO","SRI","ČET","PET","SUB","NED"]
[null,{"$f":"VrijemePočetka+TIME(0,(ROW(A1)-1)*VremenskiInterval,0)","v":"09:00:00"},"Doručak","Doručak","Doručak","Doručak","Doručak"]
[null,"10:00:00","Posao: Predavanje u zgradi B, soba 256"]
[null,"11:00:00",{"$nulls":3},"Fizika: Laboratorij \nZgrada J, soba 309"]
[null,"12:00:00"]
[null,"13:00:00"]
[null,"14:00:00"]
[null,"15:00:00"]
[null,"16:00:00"]
[null,"17:00:00"]
[null,"18:00:00"]
[null,"19:00:00"]
[null,"20:00:00"]
[null,"21:00:00"]
[null,"22:00:00"]
[null,"23:00:00"]
[null,1]
[null,1.0416666666666665]
[null,1.0833333333333335]
[null,1.125]
[null,1.1666666666666665]
[null,1.2083333333333335]
[null,1.25]
[null,1.2916666666666665]
[null,1.3333333333333335]

{"sheet":"BODOVI","index":1,"n_rows":17,"n_cols":8,"rows_kept":17}
[null,"FAKULTET"]
[null,"PLANER BODOVA"]
[null,"Naziv stupnja",{"$f":"Godina","v":"GODINA"}]
[null,"UKUPNI NAPREDAK",null,"UKUPNI NAPREDAK"]
[null,{"$f":"AVERAGE(Kolegiji[OCJENA])","v":3.5},{"$f":"IFERROR(TEXT(AVERAGEIF(Kolegiji[PRIKUPLJENI],\"Da\",Kolegiji[OCJENA]),\"0,00\"),\"0.00\")&\" Trenutni prosjek\"","v":"3,50 Trenutni prosjek"},{"$f":"COUNTIF(Kolegiji[PRIKUPLJENI],\"Da\")/COUNTA(Kolegiji[NAZIV KOLEGIJA])","v":0.6666666666666666},{"$f":"TEXT(COUNTIF(Kolegiji[PRIKUPLJENI],\"Da\")/COUNTA(Kolegiji[NAZIV KOLEGIJA]),\"0%\")&\" Prikupljeni\"","v":"67% Prikupljeni"}]
[null,"Napomena: sljedeći se sažetak kredita automatski popunjava vašim unosima u tablicu Kolegiji u nastavku"]
[null,"PREDUVJET","UKUPAN BROJ BODOVA","PRIKUPLJEN","POTREBNI"]
[null,"Primarni studij",{"$f":"IF(SUMIF(Kolegiji[UVJET],BODOVI!$B8,Kolegiji[BODOVI])=0,\"0\",SUMIF(Kolegiji[UVJET],BODOVI!$B8,Kolegiji[BODOVI]))","v":4},{"$f":"SUMIFS(Kolegiji[BODOVI],Kolegiji[UVJET],BODOVI!$B8,Kolegiji[PRIKUPLJENI],\"Da\")","v":4},{"$f":"SUMIF(Kolegiji[UVJET],BODOVI!$B8,Kolegiji[BODOVI])-SUMIFS(Kolegiji[BODOVI],Kolegiji[UVJET],BODOVI!$B8,Kolegiji[PRIKUPLJENI],\"Da\")","v":0}]
[null,"Sekundarni studij",{"$f":"IF(SUMIF(Kolegiji[UVJET],BODOVI!$B9,Kolegiji[BODOVI])=0,\"0\",SUMIF(Kolegiji[UVJET],BODOVI!$B9,Kolegiji[BODOVI]))","v":3},{"$f":"SUMIFS(Kolegiji[BODOVI],Kolegiji[UVJET],BODOVI!$B9,Kolegiji[PRIKUPLJENI],\"Da\")","v":0},{"$f":"SUMIF(Kolegiji[UVJET],BODOVI!$B9,Kolegiji[BODOVI])-SUMIFS(Kolegiji[BODOVI],Kolegiji[UVJET],BODOVI!$B9,Kolegiji[PRIKUPLJENI],\"Da\")","v":3}]
[null,"Izborni kolegij",{"$f":"IF(SUMIF(Kolegiji[UVJET],BODOVI!$B10,Kolegiji[BODOVI])=0,\"0\",SUMIF(Kolegiji[UVJET],BODOVI!$B10,Kolegiji[BODOVI]))","v":2},{"$f":"SUMIFS(Kolegiji[BODOVI],Kolegiji[UVJET],BODOVI!$B10,Kolegiji[PRIKUPLJENI],\"Da\")","v":2},{"$f":"SUMIF(Kolegiji[UVJET],BODOVI!$B10,Kolegiji[BODOVI])-SUMIFS(Kolegiji[BODOVI],Kolegiji[UVJET],BODOVI!$B10,Kolegiji[PRIKUPLJENI],\"Da\")","v":0}]
[null,"Opći studij",{"$f":"IF(SUMIF(Kolegiji[UVJET],BODOVI!$B11,Kolegiji[BODOVI])=0,\"0\",SUMIF(Kolegiji[UVJET],BODOVI!$B11,Kolegiji[BODOVI]))","v":"0"},{"$f":"SUMIFS(Kolegiji[BODOVI],Kolegiji[UVJET],BODOVI!$B11,Kolegiji[PRIKUPLJENI],\"Da\")","v":0},{"$f":"SUMIF(Kolegiji[UVJET],BODOVI!$B11,Kolegiji[BODOVI])-SUMIFS(Kolegiji[BODOVI],Kolegiji[UVJET],BODOVI!$B11,Kolegiji[PRIKUPLJENI],\"Da\")","v":0}]
[null,"Ukupno",{"$f":"SUBTOTAL(109,BODOVI!$C$8:$C$11)","v":9},{"$f":"SUBTOTAL(109,BODOVI!$D$8:$D$11)","v":6},{"$f":"SUBTOTAL(109,BODOVI!$E$8:$E$11)","v":3}]
[null,"Kolegiji"]
[null,"NAZIV KOLEGIJA","BROJ KOLEGIJA","UVJET","BODOVI","PRIKUPLJENI","OCJENA","SEMESTAR"]
[null,"Kolegij 1","Broj","Primarni studij",4,"Da",{"v":4,"d":"4.0"},"Semestar 1"]
[null,"Kolegij 2","Broj","Sekundarni studij",3,"Ne",null,"Semestar 1"]
[null,"Kolegij 3","Broj","Izborni kolegij",2,"Da",{"v":3,"d":"3.0"},"Semestar 1"]

{"sheet":"PRORAČUN","index":2,"n_rows":15,"n_cols":4,"rows_kept":15,"merged":[[5,1,5,2]]}
[null,{"$f":"Fakultet","v":"FAKULTET"}]
[null,"PRAĆENJE PRORAČUNA"]
[null,"Moj proračun",{"$f":"Godina","v":"GODINA"}]
[null,"POSTOTAK POTROŠENOG PRIHODA"]
[null,{"$f":"NETO_MJESEČNI_TROŠKOVI/NETO_MJESEČNI_PRIHOD","v":{"v":0.7454545454545455,"d":"1 kn"}}]
[null,{"$f":"B5","v":0.7454545454545455}]
[null,"NETO MJESEČNI PRIHOD","NETO MJESEČNI TROŠKOVI","SALDO"]
[null,{"$f":"C10","v":{"v":2750,"d":"2,750 kn"}},{"$f":"'NETO MJESEČNI TROŠKOVI'!C4+'TROŠKOVI SEMESTRA'!D4","v":{"v":2050,"d":"2,050 kn"}},{"$f":"NETO_MJESEČNI_PRIHOD-NETO_MJESEČNI_TROŠKOVI","v":{"v":700,"d":"700 kn"}}]
[null,"Broj mjeseci u semestru",4]
[null,"MJESEČNI PRIHOD",{"$f":"SUM(MjesečniPrihod[IZNOS])","v":{"v":2750,"d":"2,750 kn"}}]
[null,"STAVKA","IZNOS"]
[null,"Fiksni prihod",{"v":1500,"d":"1,500 kn"}]
[null,"Financijska pomoć",{"v":500,"d":"500 kn"}]
[null,"Krediti",{"v":500,"d":"500 kn"}]
[null,"Drugi prihod",{"v":250,"d":"250 kn"}]

{"sheet":"NETO MJESEČNI TROŠKOVI","index":3,"n_rows":15,"n_cols":3,"rows_kept":15}
[null,{"$f":"Fakultet","v":"FAKULTET"}]
[null,"PRAĆENJE PRORAČUNA"]
[null,"Mjesečni troškovi",{"$f":"Godina","v":"GODINA"}]
[null,"MJESEČNI TROŠKOVI",{"$f":"SUM(MjesečniTroškovi[IZNOS])","v":{"v":1675,"d":"1,675 kn"}}]
[null,"STAVKA","IZNOS"]
[null,"Stanarina",{"v":300,"d":"300 kn"}]
[null,"Režije",{"v":50,"d":"50 kn"}]
[null,"Mobilni telefon",{"v":75,"d":"75 kn"}]
[null,"Namirnice",{"v":250,"d":"250 kn"}]
[null,"Troškovi automobila",{"v":50,"d":"50 kn"}]
[null,"Studentski krediti",{"v":500,"d":"500 kn"}]
[null,"Kreditne kartice",{"v":275,"d":"275 kn"}]
[null,"Osiguranje",{"v":125,"d":"125 kn"}]
[null,"Zabava",{"v":50,"d":"50 kn"}]
[null,"Razno",{"v":0,"d":"0 kn"}]

{"sheet":"TROŠKOVI SEMESTRA","index":4,"n_rows":11,"n_cols":4,"rows_kept":11}
[null,{"$f":"Fakultet","v":"FAKULTET"}]
[null,"PRAĆENJE PRORAČUNA"]
[null,"Troškovi semestra",{"$f":"Godina","v":"GODINA"}]
[null,"TROŠKOVI SEMESTRA (ukupni/mjesečni)",{"$f":"SUM(TroškoviSemestra[IZNOS])","v":{"v":1500,"d":"1,500 kn"}},{"$f":"SUM(TroškoviSemestra[MJESEČNO])","v":{"v":375,"d":"375 kn"}}]
[null,"STAVKA","IZNOS","MJESEČNO"]
[null,"Školarina",{"v":750,"d":"750 kn"},{"$f":"TroškoviSemestra[[#This Row],[IZNOS]]/Broj_mjeseci_u_semestru","v":{"v":187.5,"d":"188 kn"}}]
[null,"Naknade za korištenje laboratorija",{"v":250,"d":"250 kn"},{"$f":"TroškoviSemestra[[#This Row],[IZNOS]]/Broj_mjeseci_u_semestru","v":{"v":62.5,"d":"63 kn"}}]
[null,"Knjige",{"v":500,"d":"500 kn"},{"$f":"TroškoviSemestra[[#This Row],[IZNOS]]/Broj_mjeseci_u_semestru","v":{"v":125,"d":"125 kn"}}]
[null,"Polozi",{"v":0,"d":"0 kn"},{"$f":"TroškoviSemestra[[#This Row],[IZNOS]]/Broj_mjeseci_u_semestru","v":{"v":0,"d":"0 kn"}}]
[null,"Prijevoz",{"v":0,"d":"0 kn"},{"$f":"TroškoviSemestra[[#This Row],[IZNOS]]/Broj_mjeseci_u_semestru","v":{"v":0,"d":"0 kn"}}]
[null,"Ostale naknade",{"v":0,"d":"0 kn"},{"$f":"TroškoviSemestra[[#This Row],[IZNOS]]/Broj_mjeseci_u_semestru","v":{"v":0,"d":"0 kn"}}]

{"sheet":"KNJIGE","index":5,"n_rows":7,"n_cols":7,"rows_kept":7}
[null,{"$f":"Fakultet","v":"FAKULTET"}]
[null,"EVIDENCIJA KNJIGA"]
[null,"Popis knjiga"]
[null,"NASLOV","AUTOR","KOLEGIJ","GDJE KUPITI?","ISBN","NAPOMENE"]
[null,"Naslov knjige","Autor","Kolegij","Mjesto","Broj"]
[null,"Naslov knjige","Autor","Kolegij","Mjesto","Broj"]
[null,"Naslov knjige","Autor","Kolegij","Mjesto","Broj"]